[Event "8th Amsterdam Summer Open-A 2018"]
[Site "Amsterdam"]
[Date "2018.07.12"]
[Round "6"]
[White "Riemersma, Li"]
[Black "Lai, Hing Ting"]
[Result "0-1"]
[ECO "E46"]
[WhiteElo "2458"]
[BlackElo "2447"]
[Annotator "ChessBase"]
[PlyCount "88"]
[EventDate "2018.07.07"]
[EventType "swiss"]
[EventCountry "NED"]
[SourceTitle "playchess.com"]
[Source "ChessBase"]
[SourceQuality "1"]
[TimeControl "40/5400+30:1800+30"]

1. d4 {[%emt 0:00:00]} Nf6 {[%emt 0:00:00]} 2. c4 {[%emt 0:00:00]} e6 {[%emt 0:00:00]} 3. Nc3 {[%emt 0:00:00]} Bb4 {[%emt 0:00:00]} 4. e3 {[%emt 0:00:00]} O-O {[%emt 0:00:25]} 5. Nge2 {[%emt 0:00:00]} c6 {[%emt 0:00:06]} 6. a3 {[%emt 0:01:13]} Ba5 {[%emt 0:00:07]} 7. g3 {[%emt 0:03:54]} d5 {[%emt 0:00:14]} 8. cxd5 {[%emt 0:00:11]} Qxd5 {[%emt 0:08:55]} 9. Rg1 {[%emt 0:02:54]} Qd6 {[%emt 0:00:14]} 10. Bg2 {[%emt 0:02:32]} e5 {[%emt 0:00:50]} 11. dxe5 {[%emt 0:10:54]} Qxe5 {[%emt 0:00:19]} 12. Qd4 {[%emt 0:03:39]} Qe7 {[%emt 0:01:01]} 13. Bd2 {[%emt 0:01:30]} Rd8 {[%emt 0:03:14]} 14. Qa4 {[%emt 0:00:46]} Bb6 {[%emt 0:05:27]} 15. Ne4 {[%emt 0:15:52]} Nd5 {[%emt 0:11:52]} 16. Nf4 {[%emt 0:05:50]} Bf5 {[%emt 0:05:19]} 17. Nxd5 {[%emt 0:20:41]} cxd5 {[%emt 0:09:02]} 18. Bb4 {[%emt 0:00:12]} Qe5 {[%emt 0:03:06]} 19. Bc3 {[%emt 0:01:03]} d4 {[%emt 0:21:51]} 20. exd4 {[%emt 0:00:07]} Bxd4 {[%emt 0:00:31]} 21. O-O-O {[%emt 0:00:44]} Nc6 {[%emt 0:00:02]} 22. Rge1 {[%emt 0:04:28]} b5 {[%emt 0:01:16]} 23. Qb3 {[%emt 0:13:45]} Rac8 {[%emt 0:07:05]} 24. Ng5 {[%emt 0:01:32]} Qf6 {[%emt 0:01:33]} 25. Bxc6 {[%emt 0:00:40]} Qxg5+ {[%emt 0:00:54]} 26. f4 {[%emt 0:00:04]} Qf6 {[%emt 0:01:12]} 27. Rxd4 {[%emt 0:03:02]} Rxd4 {[%emt 0:03:19]} 28. Qxb5 {[%emt 0:01:54]} h6 {[%emt 0:07:08]} 29. Re8+ {[%emt 0:02:37]} Rxe8 {[%emt 0:00:01]} 30. Bxe8 {[%emt 0:00:01]} Qe6 {[%emt 0:00:41]} 31. Qe5 {[%emt 0:01:04]} Qxe5 {[%emt 0:00:14]} 32. fxe5 {[%emt 0:00:01]} Rd8 {[%emt 0:01:40]} 33. Bc6 {[%emt 0:00:28]} g5 {[%emt 0:00:56]} 34. Bf3 {[%emt 0:01:00]} Kh7 {[%emt 0:03:37]} 35. Bh5 {[%emt 0:00:05]} Be6 {[%emt 0:00:46]} 36. Bd1 {[%emt 0:02:38]} Kg6 {[%emt 0:00:39]} 37. g4 {[%emt 0:01:09]} h5 {[%emt 0:02:11]} 38. gxh5+ {[%emt 0:00:36]} Kh6 {[%emt 0:00:58]} 39. b4 {[%emt 0:00:31]} Rd3 {[%emt 0:00:34]} 40. Bd2 {[%emt 0:01:31]} Rxa3 {[%emt 0:00:30]} 41. Be1 {[%emt 0:04:10]} Ra1+ {[%emt 0:00:48]} 42. Kd2 {[%emt 0:00:18]} Ra2+ {[%emt 0:00:08]} 43. Ke3 {[%emt 0:00:12]} Rxh2 {[%emt 0:00:17]} 44. Bg3 {[%emt 0:03:47]} Rb2 {[%emt 0:01:17]} 0-1

[Event "8th Amsterdam Summer Open-A 2018"]
[Site "Amsterdam"]
[Date "2018.07.12"]
[Round "6"]
[White "Kollen, Zyon"]
[Black "Grooten, Herman"]
[Result "1-0"]
[ECO "B22"]
[WhiteElo "2313"]
[BlackElo "2384"]
[Annotator "NA"]
[PlyCount "79"]
[EventDate "2018.07.07"]
[EventType "swiss"]
[EventCountry "NED"]
[SourceTitle "playchess.com"]
[Source "ChessBase"]
[SourceQuality "1"]
[TimeControl "40/5400+30:1800+30"]

1. e4 {[%emt 0:00:00]} c5 {[%emt 0:02:01]} 2. Nf3 {[%emt 0:00:00]} a6 {[%emt 0:00:24]} 3. c3 {[%emt 0:00:00]} e6 {[%emt 0:00:12]} 4. d4 {[%emt 0:00:13]} d5 {[%emt 0:00:18]} 5. exd5 {[%emt 0:04:46]} exd5 {[%emt 0:00:18]} 6. Qe2+ {[%emt 0:04:11]} Be6 {[%emt 0:11:55]} 7. Ng5 {[%emt 0:05:53]} Qd7 {[%emt 0:01:50]} 8. g3 {[%emt 0:04:38]} Nc6 {[%emt 0:10:02]} 9. Bh3 {[%emt 0:04:22]} O-O-O {[%emt 0:02:37]} (9... Nd8 $16 {was worth a try.}) 10. Nxe6 {[%emt 0:00:17]} Re8 {[%emt 0:00:22]} 11. Be3 {[%emt 0:06:58]} fxe6 {[%emt 0:01:22]} 12. dxc5 {[%emt 0:00:33]} Nf6 {[%emt 0:06:53]} 13. Nd2 {[%emt 0:02:11]} Kb8 $18 {[%emt 0:00:46]} 14. O-O-O {[%emt 0:13:45]} Qf7 {[%emt 0:00:47]} 15. f4 {[%emt 0:03:51]} Nd7 {[%emt 0:09:32]} 16. Nb3 {[%emt 0:01:32]} g6 {[%emt 0:04:46]} 17. Nd4 {[%emt 0:07:12]} Bxc5 {[%emt 0:03:41]} 18. Nxc6+ {[%emt 0:02:27]} bxc6 {[%emt 0:00:08]} 19. Rhe1 {[%emt 0:03:53]} Kb7 {[%emt 0:07:00]} 20. Rd3 {[%emt 0:04:24]} Re7 {[%emt 0:02:05]} 21. Bxc5 {[%emt 0:06:50]} Nxc5 {[%emt 0:00:02]} 22. Re3 {[%emt 0:00:06]} Rhe8 {[%emt 0:00:57]} 23. b4 {[%emt 0:03:51]} Ne4 {[%emt 0:01:53]} 24. Bf1 {[%emt 0:00:15]} e5 {[%emt 0:04:12]} 25. Qxa6+ {[%emt 0:00:56]} Kb8 {[%emt 0:00:31]} 26. fxe5 {[%emt 0:02:41]} Ra7 {[%emt 0:04:45]} 27. Qb6+ {[%emt 0:01:04]} Rb7 {[%emt 0:00:45]} 28. Qd4 {[%emt 0:01:00]} Qf2 {[%emt 0:10:03]} 29. Rxe4 {[%emt 0:01:23]} Qxa2 {[%emt 0:00:16]} 30. R4e2 {[%emt 0:00:35]} Qa3+ {[%emt 0:00:35]} 31. Kd2 {[%emt 0:01:10]} c5 {[%emt 0:00:26]} 32. bxc5 {[%emt 0:00:29]} Rb3 {[%emt 0:01:42]} 33. Bg2 {[%emt 0:02:46]} Rc8 {[%emt 0:05:20]} 34. e6 {[%emt 0:04:00]} Rxc5 {[%emt 0:03:14]} 35. e7 {[%emt 0:03:43]} Qb2+ {[%emt 0:00:59]} 36. Ke3 {[%emt 0:00:14]} Rbxc3+ {[%emt 0:00:12]} 37. Kf2 {[%emt 0:00:38]} Rf3+ {[%emt 0:00:19]} 38. Kxf3 {[%emt 0:00:34]} Qxd4 {[%emt 0:00:09]} 39. e8=Q+ {[%emt 0:00:14]} Kb7 {[%emt 0:01:09]} 40. Rb1+ {[%emt 0:00:22]} 1-0

[Event "8th Amsterdam Summer Open-A 2018"]
[Site "Amsterdam"]
[Date "2018.07.12"]
[Round "6"]
[White "Van Baar, Esper"]
[Black "Cornelisse, John"]
[Result "1-0"]
[ECO "C77"]
[WhiteElo "2252"]
[BlackElo "2132"]
[Annotator "NA"]
[PlyCount "48"]
[EventDate "2018.07.07"]
[EventType "swiss"]
[EventCountry "NED"]
[SourceTitle "playchess.com"]
[Source "ChessBase"]
[SourceQuality "1"]
[TimeControl "40/5400+30:1800+30"]

{[%evp 8,28,26,19,29,32767,32767,0,5,32767,32767,-6,12,30,44,44,48,35,48,25,9,-7,0]} 1. e4 {[%emt 0:00:00]} e5 {[%emt 0:00:00]} 2. Nf3 {[%emt 0:00:00]} Nc6 {[%emt 0:00:00]} 3. Bb5 {[%emt 0:00:00]} a6 {[%emt 0:00:29]} 4. Ba4 {[%emt 0:02:34]} Nf6 {[%emt 0:00:23]} 5. d3 {[%emt 0:00:33]} d6 {[%emt 0:02:54]} 6. c4 {[%emt 0:00:51]} Be7 {[%emt 0:04:26]} 7. h3 {[%emt 0:02:01]} O-O {[%emt 0:03:33]} 8. Be3 {[%emt 0:01:19]} Nd7 {[%emt 0:12:52]} 9. Nc3 {[%emt 0:01:32] LiveBook: 17 Partien} Re8 {[%emt 0:05:36]} 10. O-O {[%emt 0:02:33]} Nf8 {[%emt 0:02:00]} 11. d4 {[%emt 0:05:03]} exd4 {[%emt 0:00:58]} 12. Nxd4 {[%emt 0:00:16]} Bd7 {[%emt 0:00:46]} 13. Bxc6 {[%emt 0:02:04]} bxc6 {[%emt 0:00:22]} 14. Qd3 {[%emt 0:06:00]} Bf6 $11 {[%emt 0:11:15]} 15. Rad1 {[%emt 0:03:22]} Qb8 {[%emt 0:03:28]} 16. b3 {[%emt 0:04:32]} Qb7 {[%emt 0:04:21]} 17. f3 {[%emt 0:06:55]} a5 {[%emt 0:09:22]} 18. Nde2 {[%emt 0:02:55]} Qc8 {[%emt 0:06:41]} 19. c5 {[%emt 0:03:34]} Be7 {[%emt 0:01:42]} 20. cxd6 {[%emt 0:07:03]} cxd6 {[%emt 0:00:36]} 21. Bf4 {[%emt 0:08:25]} Rd8 {[%emt 0:11:33]} 22. Na4 {[%emt 0:05:26]} Qb7 {[%emt 0:03:09]} 23. Bxd6 {[%emt 0:03:56]} Bxh3 {[%emt 0:00:43]} 24. e5 {[%emt 0:00:22]} Bf5 {[%emt 0:02:04]} 1-0

[Event "8th Amsterdam Summer Open-A 2018"]
[Site "Amsterdam"]
[Date "2018.07.12"]
[Round "6"]
[White "Hildenbrand, Peter"]
[Black "Elgersma, Onno"]
[Result "1-0"]
[ECO "C00"]
[WhiteElo "2226"]
[BlackElo "2150"]
[Annotator "NA"]
[PlyCount "95"]
[EventDate "2018.07.07"]
[EventType "swiss"]
[EventCountry "NED"]
[SourceTitle "playchess.com"]
[Source "ChessBase"]
[SourceQuality "1"]
[TimeControl "40/5400+30:1800+30"]

1. e4 {[%emt 19:35:08]} e6 {[%emt 0:00:23]} 2. Qe2 {[%emt 0:00:24]} c5 {[%emt 0:01:37]} 3. g3 {[%emt 0:00:11]} Nc6 {[%emt 0:01:44]} 4. Nf3 {[%emt 0:02:24]} g6 {[%emt 0:02:39]} 5. Nc3 {[%emt 0:03:58]} d6 {[%emt 0:03:13]} 6. b3 {[%emt 0:14:03]} Bg7 {[%emt 0:02:08]} 7. Bb2 {[%emt 0:00:08]} Nge7 {[%emt 0:02:15]} 8. h4 {[%emt 0:01:17]} h6 {[%emt 0:01:55]} 9. Bg2 {[%emt 0:00:49]} Rb8 {[%emt 0:05:17]} 10. Nd1 {[%emt 0:04:41]} e5 {[%emt 0:04:08]} 11. Ne3 {[%emt 0:02:57]} Be6 $11 {[%emt 0:04:30]} 12. h5 {[%emt 0:07:47]} Qd7 {[%emt 0:08:36]} 13. hxg6 {[%emt 0:01:42]} fxg6 {[%emt 0:03:17]} 14. c3 {[%emt 0:00:28]} b5 {[%emt 0:05:39]} 15. Rd1 {[%emt 0:08:21]} b4 {[%emt 0:04:38]} 16. Ba1 {[%emt 0:05:28]} bxc3 {[%emt 0:18:13]} 17. dxc3 {[%emt 0:00:14]} O-O {[%emt 0:00:23]} 18. Nd2 {[%emt 0:00:37]} Nd8 {[%emt 0:08:05]} 19. Ndc4 {[%emt 0:01:34]} Nf7 {[%emt 0:00:22]} 20. Rd2 {[%emt 0:02:24]} Rbd8 {[%emt 0:00:38]} 21. O-O {[%emt 0:01:57]} Nc8 {[%emt 0:02:48]} 22. Rfd1 {[%emt 0:02:01]} Bh3 {[%emt 0:03:37]} 23. f4 {[%emt 0:17:37]} Bxg2 {[%emt 0:05:37]} 24. Kxg2 {[%emt 0:00:35]} exf4 {[%emt 0:01:12]} 25. gxf4 {[%emt 0:00:08]} Qe6 {[%emt 0:00:12]} 26. Nd5 {[%emt 0:02:58]} Rde8 {[%emt 0:00:33]} 27. Re1 {[%emt 0:00:36]} Qd7 {[%emt 0:01:15]} 28. Rd3 {[%emt 0:02:25]} Ne7 {[%emt 0:00:52]} 29. Nce3 {[%emt 0:04:48]} Nd8 {[%emt 0:03:35]} 30. c4 {[%emt 0:02:02]} Bxa1 {[%emt 0:00:57]} 31. Rxa1 {[%emt 0:00:02]} Ne6 {[%emt 0:00:47]} 32. Rf1 {[%emt 0:03:57]} Nxd5 {[%emt 0:00:20]} 33. Nxd5 {[%emt 0:00:49]} Nd4 {[%emt 0:00:30]} 34. Qe3 {[%emt 0:03:14]} Qg4+ {[%emt 0:01:41]} 35. Kh2 {[%emt 0:00:12]} Nf5 {[%emt 0:01:22]} 36. Qe1 {[%emt 0:02:03]} Nd4 {[%emt 0:02:13]} 37. Rg3 {[%emt 0:00:30]} Qh4+ {[%emt 0:00:12]} 38. Kg2 {[%emt 0:00:13]} Nf5 {[%emt 0:00:51]} 39. exf5 {[%emt 0:02:48]} Rxe1 {[%emt 0:00:29]} 40. Rxe1 {[%emt 0:00:05]} Rxf5 {[%emt 0:01:15]} 41. Rh1 {[%emt 0:03:45]} Qd8 {[%emt 0:01:03]} 42. Rxh6 {[%emt 0:00:08]} g5 {[%emt 0:04:09]} 43. Rgh3 {[%emt 0:02:42]} Rf8 {[%emt 0:11:17]} 44. f5 {[%emt 0:13:09]} Qa5 {[%emt 0:07:30]} 45. Rh8+ {[%emt 0:00:20]} Kf7 {[%emt 0:00:03]} 46. R3h7+ {[%emt 0:00:13]} Ke8 {[%emt 0:00:05]} 47. Re7+ {[%emt 0:00:08]} Kd8 {[%emt 0:00:05]} 48. Rxf8# {[%emt 0:00:00] Ke8 [%emt 00:00:58]} 1-0

[Event "8th Amsterdam Summer Open-A 2018"]
[Site "Amsterdam"]
[Date "2018.07.12"]
[Round "6"]
[White "Kohler, Aran"]
[Black "Bosboom, Manuel"]
[Result "1/2-1/2"]
[ECO "B00"]
[WhiteElo "2175"]
[BlackElo "2403"]
[Annotator "NA"]
[PlyCount "34"]
[EventDate "2018.07.07"]
[EventType "swiss"]
[EventCountry "NED"]
[SourceTitle "playchess.com"]
[Source "ChessBase"]
[SourceQuality "1"]
[TimeControl "40/5400+30:1800+30"]

{[%evp 8,32,93,89,73,100,99,104,111,91,70,86,77,41,54,36,95,52,48,56,58,52,65,25,50,32767,24]} 1. d4 {[%emt 0:00:00]} b6 {[%emt 0:10:31]} 2. e4 {[%emt 0:03:10]} Bb7 {[%emt 0:00:10]} 3. Nc3 {[%emt 0:00:28]} e6 {[%emt 0:00:44]} 4. a3 {[%emt 0:00:55]} g6 {[%emt 0:01:04]} (4... d5 $14) 5. h4 {[%emt 0:00:19] LiveBook: 3 Games B00: Damenfianchetto, Nimzowitsch-Verteidigung} h5 {[%emt 0:05:00]} 6. Bg5 {[%emt 0:00:19]} Be7 {[%emt 0:00:15]} 7. Qd2 $146 {[%emt 0:01:41]} ({Vorgänger:} 7. Nh3 d6 8. Qd2 Nd7 9. Bc4 Ngf6 10. d5 e5 11. g3 a6 12. a4 Bc8 {0-1 (49) Parligras,M (2490)-Nevednichy,V (2555) Curtea de Arges 2002}) 7... Nf6 {[%emt 0:03:51]} 8. e5 {[%emt 0:00:43]} Ne4 {[%emt 0:01:49]} 9. Nxe4 {[%emt 0:00:37]} Bxe4 {[%emt 0:00:03]} 10. f3 {[%emt 0:03:01]} Bb7 {[%emt 0:03:10]} 11. O-O-O {[%emt 0:01:04]} Nc6 {[%emt 0:03:43]} 12. f4 {[%emt 0:01:38]} Bxg5 {[%emt 0:03:34]} 13. hxg5 {[%emt 0:04:28]} Ne7 {[%emt 0:04:59]} 14. Rh3 {[%emt 0:00:29]} Rg8 {[%emt 0:10:22]} 15. Bd3 {[%emt 0:02:48]} d6 {[%emt 0:02:33]} 16. Re3 {[%emt 0:13:09]} Qd7 $11 {[%emt 0:02:53]} 17. Nf3 {[%emt 0:02:31]} Bxf3 {[%emt 0:09:03]} 1/2-1/2

[Event "8th Amsterdam Summer Open-A 2018"]
[Site "Amsterdam"]
[Date "2018.07.12"]
[Round "6"]
[White "Mesman, Edwyn"]
[Black "De Boer, Eelke"]
[Result "1-0"]
[ECO "A84"]
[WhiteElo "2100"]
[BlackElo "2317"]
[Annotator "NA"]
[PlyCount "97"]
[EventDate "2018.07.07"]
[EventType "swiss"]
[EventCountry "NED"]
[SourceTitle "playchess.com"]
[Source "ChessBase"]
[SourceQuality "1"]
[TimeControl "40/5400+30:1800+30"]

1. d4 {[%emt 0:00:00]} e6 {[%emt 0:00:00]} 2. c4 {[%emt 0:00:00]} f5 {[%emt 0:00:00]} 3. Nf3 {[%emt 0:00:00]} Nf6 {[%emt 0:00:00]} 4. g3 {[%emt 0:00:06]} g6 {[%emt 0:00:00]} 5. Bg2 {[%emt 0:00:21]} Bg7 {[%emt 0:00:01]} 6. b4 {[%emt 0:00:25]} O-O {[%emt 0:01:37]} 7. Bb2 {[%emt 0:00:17] LiveBook: 5 Partien} Qe7 {[%emt 0:05:44]} 8. a3 {[%emt 0:01:52]} d6 {[%emt 0:00:55]} 9. O-O {[%emt 0:02:16]} Nbd7 {[%emt 0:04:03]} 10. Nbd2 {[%emt 0:02:47]} e5 {[%emt 0:20:21]} 11. dxe5 {[%emt 0:02:39]} dxe5 {[%emt 0:00:07] [#]} (11... Nxe5 $11 12. Qb3 c6) 12. e4 $1 {[%emt 0:02:01]} c5 {[%emt 0:04:43]} 13. Qe2 $11 {[%emt 0:24:36]} (13. exf5 $16 gxf5 14. Re1) 13... f4 {[%emt 0:06:23]} 14. Nb1 {[%emt 0:01:18]} b6 {[%emt 0:14:53]} 15. Nc3 {[%emt 0:04:39]} Ba6 {[%emt 0:02:38]} 16. b5 {[%emt 0:04:27]} Bb7 {[%emt 0:00:19]} 17. Rad1 {[%emt 0:00:14]} h6 {[%emt 0:08:20]} 18. Nh4 {[%emt 0:15:36]} Kh7 {[%emt 0:02:00]} 19. Rd2 {[%emt 0:00:56]} Rfd8 {[%emt 0:02:28]} 20. Re1 {[%emt 0:02:09]} Ne8 {[%emt 0:06:58]} 21. Bh3 {[%emt 0:14:37]} Nd6 {[%emt 0:04:22]} 22. Rc2 {[%emt 0:07:14]} Nf8 {[%emt 0:04:16]} 23. Nd5 {[%emt 0:02:21]} Qf7 {[%emt 0:00:46]} 24. Nf3 {[%emt 0:02:25]} Re8 {[%emt 0:00:12]} 25. Rd1 {[%emt 0:00:53]} Rad8 {[%emt 0:02:33]} 26. a4 {[%emt 0:01:33]} Bc8 {[%emt 0:01:19]} 27. Bxc8 {[%emt 0:01:15]} Nxc8 {[%emt 0:00:05]} 28. a5 {[%emt 0:01:13]} g5 {[%emt 0:02:52]} 29. Ra1 {[%emt 0:01:30]} Ng6 {[%emt 0:02:13]} 30. g4 {[%emt 0:01:03]} Nge7 {[%emt 0:02:57]} 31. h3 {[%emt 0:02:37]} Nxd5 {[%emt 0:00:16]} 32. cxd5 {[%emt 0:00:06]} Nd6 {[%emt 0:00:44]} 33. axb6 {[%emt 0:00:33]} axb6 {[%emt 0:00:05]} 34. Ra6 {[%emt 0:00:17]} Rb8 {[%emt 0:00:11]} 35. Rxc5 {[%emt 0:01:37]} bxc5 {[%emt 0:00:25]} 36. Rxd6 {[%emt 0:00:05]} Qb7 {[%emt 0:02:39]} 37. b6 {[%emt 0:00:40]} Rbd8 {[%emt 0:00:32]} 38. Rc6 {[%emt 0:00:35]} Rc8 {[%emt 0:00:13]} 39. Qb5 {[%emt 0:00:38]} c4 {[%emt 0:00:46]} 40. Qxc4 {[%emt 0:01:20]} Rxc6 {[%emt 0:00:30]} 41. Qxc6 {[%emt 0:02:06]} Qb8 {[%emt 0:06:52]} 42. d6 {[%emt 0:08:48]} Rc8 {[%emt 0:04:08]} 43. Qd7 {[%emt 0:01:52]} Rd8 {[%emt 0:00:18]} 44. Qf5+ {[%emt 0:01:58]} Kg8 {[%emt 0:00:30]} 45. Bxe5 {[%emt 0:03:28]} Qxb6 {[%emt 0:02:03]} 46. Qe6+ {[%emt 0:00:47]} Kh7 {[%emt 0:00:12]} 47. Qf7 {[%emt 0:01:19]} Rg8 {[%emt 0:00:08]} 48. Qf5+ {[%emt 0:00:23]} Kh8 {[%emt 0:00:09]} 49. Qg6 {[%emt 0:00:27]} 1-0

[Event "8th Amsterdam Summer Open-A 2018"]
[Site "Amsterdam"]
[Date "2018.07.12"]
[Round "6"]
[White "Buijten, Arno"]
[Black "Vroombout, Enrico"]
[Result "0-1"]
[ECO "E74"]
[WhiteElo "2078"]
[BlackElo "2132"]
[Annotator "NA"]
[PlyCount "54"]
[EventDate "2018.07.07"]
[EventType "swiss"]
[EventCountry "NED"]
[SourceTitle "playchess.com"]
[Source "ChessBase"]
[SourceQuality "1"]
[TimeControl "40/5400+30:1800+30"]

1. d4 {[%emt 19:34:56]} Nf6 {[%emt 0:00:05]} 2. c4 {[%emt 0:00:24]} g6 {[%emt 0:00:03]} 3. Nc3 {[%emt 0:00:12]} Bg7 {[%emt 0:00:04]} 4. e4 {[%emt 0:00:43]} d6 {[%emt 0:00:04]} 5. Be2 {[%emt 0:00:28]} O-O {[%emt 0:00:11]} 6. Bg5 {[%emt 0:00:12]} c5 {[%emt 0:05:37]} 7. d5 {[%emt 0:05:56]} b5 {[%emt 0:03:02]} 8. cxb5 {[%emt 0:02:45]} a6 {[%emt 0:01:03]} 9. bxa6 {[%emt 0:08:12]} Qa5 {[%emt 0:01:49]} 10. Qd2 {[%emt 0:13:23] LiveBook: 14 Games} Nxa6 {[%emt 0:01:33]} 11. f4 $11 {[%emt 0:04:25]} (11. Nf3 $14) 11... Nb4 {[%emt 0:25:58]} 12. Nf3 {[%emt 0:06:49]} Ba6 {[%emt 0:01:43]} 13. O-O {[%emt 0:02:54]} Bxe2 {[%emt 0:06:18]} 14. Qxe2 {[%emt 0:01:03]} Qa6 {[%emt 0:00:43]} 15. Qd2 {[%emt 0:06:19]} Qc4 {[%emt 0:06:08]} 16. a3 {[%emt 0:05:16]} Nd3 {[%emt 0:00:51]} 17. e5 {[%emt 0:04:06]} Rfb8 {[%emt 0:22:16]} 18. Rab1 {[%emt 0:03:08]} dxe5 {[%emt 0:06:27]} 19. b3 {[%emt 0:11:10]} Rxb3 {[%emt 0:05:30]} 20. Rxb3 {[%emt 0:00:09]} Qxb3 {[%emt 0:00:04]} 21. Nxe5 {[%emt 0:05:42]} Nxe5 {[%emt 0:05:18]} 22. fxe5 {[%emt 0:00:26]} Ng4 {[%emt 0:02:09]} 23. Bxe7 {[%emt 0:03:50]} Bxe5 {[%emt 0:00:46]} 24. Ne4 {[%emt 0:04:42]} Bd4+ {[%emt 0:03:01]} 25. Kh1 {[%emt 0:01:34]} Qxd5 {[%emt 0:00:04]} 26. Bxc5 {[%emt 0:04:43]} Qe5 {[%emt 0:00:37]} 27. Bd6 {[%emt 0:00:25]} Qxe4 {[%emt 0:00:14]} 0-1

[Event "8th Amsterdam Summer Open-A 2018"]
[Site "Amsterdam"]
[Date "2018.07.12"]
[Round "6"]
[White "Bogaard, Milo"]
[Black "Elgersma, Simon"]
[Result "0-1"]
[ECO "E72"]
[WhiteElo "2073"]
[BlackElo "2263"]
[Annotator "NA"]
[PlyCount "78"]
[EventDate "2018.07.07"]
[EventType "swiss"]
[EventCountry "NED"]
[SourceTitle "playchess.com"]
[Source "ChessBase"]
[SourceQuality "1"]
[TimeControl "40/5400+30:1800+30"]

1. c4 {[%emt 0:00:00]} Nf6 {[%emt 0:00:15]} 2. Nc3 {[%emt 0:00:00]} g6 {[%emt 0:00:18]} 3. g3 {[%emt 0:00:00]} Bg7 {[%emt 0:00:06]} 4. Bg2 {[%emt 0:00:00]} O-O {[%emt 0:00:13]} 5. e4 {[%emt 0:00:02]} d6 {[%emt 0:00:05]} 6. Nge2 {[%emt 0:00:05]} e5 {[%emt 0:00:12]} 7. O-O {[%emt 0:00:10]} c6 {[%emt 0:00:16]} 8. d4 {[%emt 0:03:13]} Nbd7 {[%emt 0:02:23]} 9. h3 {[%emt 0:06:38]} Qc7 {[%emt 0:07:42]} 10. Be3 {[%emt 0:01:30] LiveBook: 3 Games} Re8 {[%emt 0:04:49]} 11. d5 {[%emt 0:01:45]} a6 {[%emt 0:13:27]} 12. Qd2 {[%emt 0:08:05]} cxd5 {[%emt 0:08:43]} 13. cxd5 {[%emt 0:05:22]} b5 {[%emt 0:02:09]} 14. Rfc1 {[%emt 0:03:51]} Qb8 {[%emt 0:02:03]} 15. Rc2 $14 {[%emt 0:17:19]} Nb6 {[%emt 0:01:41]} 16. b3 {[%emt 0:00:45]} Bd7 {[%emt 0:01:53]} 17. a4 {[%emt 0:10:08]} b4 {[%emt 0:12:12]} 18. Nd1 {[%emt 0:00:27]} a5 {[%emt 0:00:40]} 19. Nb2 {[%emt 0:02:46]} Rc8 {[%emt 0:02:51]} 20. Rac1 {[%emt 0:00:42]} Ne8 {[%emt 0:03:12]} 21. Kh2 {[%emt 0:05:01]} Qb7 {[%emt 0:02:39]} 22. Rxc8 {[%emt 0:07:59]} Rxc8 {[%emt 0:02:15]} 23. Rxc8 {[%emt 0:03:18]} Bxc8 {[%emt 0:01:04]} 24. Qc2 {[%emt 0:01:51]} Bd7 {[%emt 0:00:32]} 25. Nc4 {[%emt 0:00:36]} Nxc4 {[%emt 0:00:17]} 26. Qxc4 {[%emt 0:00:07]} h5 {[%emt 0:03:08]} 27. Nc1 {[%emt 0:01:35]} Bf6 {[%emt 0:03:47]} 28. Nd3 {[%emt 0:01:12]} Bd8 {[%emt 0:03:02]} 29. f4 {[%emt 0:01:07]} f6 {[%emt 0:01:24]} 30. fxe5 {[%emt 0:02:28]} fxe5 {[%emt 0:00:20]} 31. Bc1 {[%emt 0:03:05]} Bb6 {[%emt 0:01:32]} 32. Bb2 {[%emt 0:00:12]} Qc8 {[%emt 0:08:42]} 33. Qc1 {[%emt 0:02:29]} Qxc1 {[%emt 0:01:51]} 34. Nxc1 {[%emt 0:03:35]} Nf6 {[%emt 0:01:24]} 35. Nd3 {[%emt 0:04:40]} Bc8 {[%emt 0:01:03]} 36. Bxe5 {[%emt 0:00:43]} dxe5 {[%emt 0:01:04]} 37. Nxe5 {[%emt 0:00:06]} Bc7 {[%emt 0:08:11]} 38. Nc4 {[%emt 0:02:38]} Ba6 {[%emt 0:00:30]} 39. Nd2 {[%emt 0:03:26]} h4 {[%emt 0:00:12]} 0-1

[Event "8th Amsterdam Summer Open-A 2018"]
[Site "Amsterdam"]
[Date "2018.07.12"]
[Round "6"]
[White "Pham, Khoi"]
[Black "Brink, Barry"]
[Result "0-1"]
[ECO "B48"]
[WhiteElo "2037"]
[BlackElo "2342"]
[Annotator "NA"]
[PlyCount "52"]
[EventDate "2018.07.07"]
[EventType "swiss"]
[EventCountry "NED"]
[SourceTitle "playchess.com"]
[Source "ChessBase"]
[SourceQuality "1"]
[TimeControl "40/5400+30:1800+30"]

1. e4 {[%emt 0:00:00]} c5 {[%emt 0:00:00]} 2. Nf3 {[%emt 0:00:00]} e6 {[%emt 0:00:00]} 3. d4 {[%emt 0:00:00]} cxd4 {[%emt 0:00:02]} 4. Nxd4 {[%emt 0:00:06]} Nc6 {[%emt 0:00:04]} 5. Nc3 {[%emt 0:00:09]} Qc7 {[%emt 0:00:07]} 6. Be3 {[%emt 0:00:14]} Nf6 {[%emt 0:00:08]} 7. Bd3 {[%emt 0:00:23]} a6 {[%emt 0:00:37]} 8. O-O {[%emt 0:00:34]} Ne5 {[%emt 0:00:31]} 9. h3 {[%emt 0:00:39]} Bc5 {[%emt 0:00:15]} 10. Kh1 {[%emt 0:00:19]} d6 {[%emt 0:00:11]} 11. f4 {[%emt 0:00:31]} Ng6 {[%emt 0:00:07]} 12. Qe1 {[%emt 0:01:33]} O-O {[%emt 0:01:20]} 13. f5 {[%emt 0:17:20]} Ne5 {[%emt 0:01:30]} 14. Qh4 {[%emt 0:02:13]} b5 {[%emt 0:01:10]} 15. Rf3 {[%emt 0:05:37] [#]} (15. Nce2 $11 {keeps the balance.}) 15... exf5 $1 {[%emt 0:02:00]} (15... Nxf3 16. gxf3 Kh8 17. Rg1 $15) 16. exf5 {[%emt 0:06:13]} Nxf3 {[%emt 0:08:30] LiveBook: 8 Games} 17. gxf3 {[%emt 0:02:07]} Bb7 {[%emt 0:01:52]} 18. Rg1 $1 {[%emt 0:04:13] [#]} Bxf3+ $1 {[%emt 0:01:39]} 19. Kh2 $19 {[%emt 0:04:38]} (19. Nxf3 $15 Bxe3 20. Qxf6 Bxg1 21. Qg5) 19... Qe7 {[%emt 0:13:59]} 20. Qg3 {[%emt 0:07:08]} Qe5 {[%emt 0:33:00]} 21. Bf4 {[%emt 0:01:19]} Ng4+ {[%emt 0:00:22]} 22. hxg4 {[%emt 0:06:20]} Qxd4 {[%emt 0:01:22]} 23. Rf1 {[%emt 0:02:23]} Bb7 {[%emt 0:00:32]} 24. Qh4 {[%emt 0:06:30]} f6 {[%emt 0:02:00]} 25. Bd2 {[%emt 0:03:28]} Rae8 {[%emt 0:01:23]} 26. Rf4 {[%emt 0:05:21]} Qg1+ {[%emt 0:00:37]} 0-1